fUST/lending_fUST_20250810
["ID","MTS","AMOUNT","RATE_DAILY","PERIOD"]
[378316348,1754820638456,-460.0,0.00021025,2]
[378316349,1754820638465,-276.71472761,0.00021025,2]
[378316350,1754820638475,-460.0,0.00021025,2]
[378316351,1754820638489,-472.10320285,0.00021025,2]
[378316352,1754820638499,-463.23549988,0.00021025,2]
[378316353,1754820638508,-462.42112329,0.00021025,2]
[378316354,1754820638518,-460.0,0.00021025,2]
[378316355,1754820638528,-460.0,0.00021025,2]
[378316356,1754820638538,-460.0,0.00021025,2]
[378316357,1754820638547,-460.0,0.00021025,2]
[378316358,1754820638557,-460.0,0.00021025,2]
[378316359,1754820638567,-296.91070501,0.00021025,2]
[378316360,1754820638578,-465.97728401,0.00021025,2]
[378316361,1754820638587,-460.0,0.00021025,2]
[378316362,1754820638597,-460.0,0.00021025,2]
[378316363,1754820638609,-460.0,0.00021025,2]
[378316364,1754820638618,-460.0,0.00021025,2]
[378316365,1754820638628,-460.0,0.00021025,2]
[378316366,1754820638638,-142.06360853,0.00021025,2]
[378316367,1754820638651,-317.93639147,0.00021025,2]
[378316368,1754820638662,-259.15446962,0.00021025,2]
[378316369,1754820638673,-460.0,0.00021025,2]
[378316370,1754820638685,-460.0,0.00021025,2]
[378316371,1754820638695,-170.68107786,0.00021025,2]
[378316372,1754820638704,-460.0,0.00021025,2]
[378316373,1754820638714,-460.0,0.00021025,2]
[378316374,1754820638723,-460.0,0.00021025,2]
[378316375,1754820638734,-460.0,0.00021025,2]
[378316376,1754820638743,-460.0,0.00021025,2]
[378316377,1754820638752,-460.0,0.00021025,2]
[378316378,1754820638763,-460.0,0.00021025,2]
[378316379,1754820638772,-460.0,0.00021025,2]
[378316380,1754820638784,-460.0,0.00021025,2]
[378316381,1754820638793,-460.0,0.00021025,2]
[378316382,1754820638802,-460.0,0.00021025,2]
[378316383,1754820638811,-460.0,0.00021025,2]
[378316384,1754820638821,-500.0,0.00021025,2]
[378316385,1754820638830,-500.0,0.00021025,2]
[378316386,1754820638839,-460.0,0.00021025,2]
[378316387,1754820638848,-500.0,0.00021025,2]
[378316388,1754820638857,-500.0,0.00021025,2]
[378316389,1754820638866,-500.0,0.00021025,2]
[378316390,1754820638875,-500.0,0.00021025,2]
[378316391,1754820638884,-500.0,0.00021025,2]
[378316392,1754820638894,-500.0,0.00021025,2]
[378316393,1754820638903,-571.6,0.00021025,2]
[378316394,1754820638911,-460.0,0.00021025,2]
[378316395,1754820638920,-460.0,0.00021025,2]
[378316396,1754820638930,-460.0,0.00021025,2]
[378316397,1754820638943,-460.0,0.00021025,2]
[378316398,1754820638952,-381.45446392,0.00021025,2]
[378316408,1754820639978,-78.54553608,0.00021025,2]
[378316411,1754820639988,-460.0,0.00021025,2]
[378316413,1754820639998,-460.0,0.00021025,2]
[378316415,1754820640008,-88.1020782,0.00021025,2]
[378316417,1754820640021,-619.2379218,0.00021025,2]
[378316419,1754820640031,-460.0,0.00021025,2]
[378316421,1754820640041,-460.0,0.00021025,2]
[378316423,1754820640051,-594.7633763,0.00021025,2]
[378316425,1754820640060,-460.0,0.00021025,2]
[378316427,1754820640070,-5.30699582,0.00021073,2]
[378316429,1754820640083,-175.89075635,0.00021073,2]
[378316431,1754820640092,-500.0,0.00021073,2]
[378316433,1754820640102,-500.0,0.00021073,2]
[378316435,1754820640112,-460.0,0.00021124,2]
[378316437,1754820640121,-460.0,0.00021124,2]
[378316439,1754820640131,-460.0,0.00021124,2]
[378316441,1754820640140,-460.0,0.00021124,2]
[378316443,1754820640149,-460.0,0.00021297,2]
[378316445,1754820640159,-460.0,0.00021297,2]
[378316447,1754820640168,-653.91,0.00021297,2]
[378316449,1754820640178,-460.0,0.00021298,2]
[378316451,1754820640188,-460.0,0.00021299,2]
[378316453,1754820640197,-460.0,0.00021299,2]
[378316456,1754820640207,-460.0,0.00021299,2]
[378316457,1754820640216,-41.5751777,0.00021299,2]
[378316460,1754820640228,-418.4248223,0.00021299,2]
[378316462,1754820640238,-358.2645563,0.00021299,2]
[378316464,1754820640247,-385.7,0.00021299,2]
[378316465,1754820640256,-460.0,0.00021299,2]
[378316468,1754820640267,-707.34,0.00021299,2]
[378316470,1754820640276,-207.27232839,0.00021299,2]
[378316472,1754820640288,-191.74522417,0.00021299,2]
[378316474,1754820640297,-460.0,0.00021398,2]
[378316476,1754820640307,-460.0,0.00021571,2]
[378316478,1754820640316,-653.91,0.00021571,2]
[378316480,1754820640326,-460.0,0.00021572,2]
[378316482,1754820640335,-460.0,0.00021573,2]
[378316484,1754820640344,-707.34,0.00021573,2]
[378316486,1754820640353,-301.95477583,0.00021621,2]
[378316488,1754820640368,-698.04522417,0.00021621,2]
[378316490,1754820640378,-1124.45232877,0.00021655,2]
[378316620,1754820674199,3358.6025848,0.000199,2]
[378316621,1754820773138,150.0,0.00018925,2]
[378316622,1754820802175,762.0,0.0002,2]
[378316627,1754820852725,2519.19763731,0.000199,2]
[378316628,1754820852752,739.79609527,0.000199,2]
[378316649,1754820936505,-1000.0,0.00020625,2]
[378316654,1754821032739,5000.0,0.00020501,2]
[378316655,1754821035576,3280.43598462,0.000199,2]
[378316656,1754821076503,150.0,0.00018925,2]
[378316657,1754821078563,10000.0,0.00020132,2]
[378316658,1754821133790,215.115402,0.00013699,2]
[378316659,1754821134208,215.115402,0.00020187,2]
[378316661,1754821150478,221.68412655,0.00020392,2]
[378316679,1754821212028,177.85298956,0.000199,2]
[378316680,1754821212058,3810.12396874,0.000199,2]
[378316681,1754821243006,5000.0,0.00020501,2]
[378316682,1754821256320,666.0,0.00020177,2]
[378316683,1754821278585,10523.87603126,0.00020049,2]
[378316684,1754821278612,14376.12396874,0.00020049,2]
[378316685,1754821317905,2171.5159882,0.00020024,2]
[378316688,1754821407416,480.0,0.00020501,7]
[378316689,1754821415100,2972.36004306,0.000199,2]
[378316690,1754821415125,884.31946491,0.000199,2]
[378316698,1754821441860,5000.0,0.00020501,2]
[378316699,1754821593001,3910.17072787,0.000199,2]
[378316700,1754821594602,10205.50980722,0.00020023,2]
[378316701,1754821594624,20000.0,0.00020023,2]
[378316702,1754821594646,20000.0,0.00020023,2]
[378316703,1754821594668,12632.71199408,0.00020023,2]
[378316704,1754821611237,203.125144,0.00027397,120]
[378316706,1754821678782,623.18332717,0.000189,2]
[378316710,1754821728468,1158.0798217,0.0001,2]
[378316711,1754821744820,183.295973,0.00020023,2]
[378316712,1754821754037,324.378955,0.00020094,2]
[378316713,1754821754348,486.46700967,0.00020296,2]
[378316714,1754821754690,243.23350484,0.00020391,2]
[378316715,1754821794276,4348.64941454,0.000199,2]
[378316716,1754821794300,422.0832344,0.000199,2]
[378316718,1754821823699,253.863948,0.00020018,2]
[378316734,1754821832304,-2972.65438966,0.00020715,2]
[378316745,1754821832362,-2027.34561034,0.00020715,2]
[378316747,1754821832372,-168.16503093,0.00020823,2]
[378316749,1754821832381,-982.08830832,0.00020923,2]
[378316751,1754821832390,-804.94545894,0.00021002,2]
[378316753,1754821832402,-300.0,0.00021021,2]
[378316755,1754821832412,-460.0,0.00021022,2]
[378316757,1754821832423,-623.31,0.00021022,2]
[378316758,1754821832434,-623.31,0.00021022,2]
[378316759,1754821832445,-460.0,0.00021022,2]
[378316760,1754821832457,-460.0,0.00021022,2]
[378316761,1754821832467,-460.0,0.00021022,2]
[378316762,1754821832480,-460.0,0.00021022,2]
[378316763,1754821832491,-160.0,0.00021023,2]
[378316764,1754821832502,-462.92607483,0.00021023,2]
[378316765,1754821832512,-248.75,0.00021023,2]
[378316766,1754821832522,-460.0,0.00021023,2]
[378316768,1754821832534,-460.0,0.00021023,2]
[378316770,1754821832544,-460.0,0.00021023,2]
[378316772,1754821832555,-460.0,0.00021023,2]
[378316774,1754821832565,-460.0,0.00021023,2]
[378316777,1754821832575,-460.0,0.00021023,2]
[378316779,1754821832586,-460.0,0.00021023,2]
[378316781,1754821832596,-460.0,0.00021023,2]
[378316783,1754821832607,-460.0,0.00021023,2]
[378316785,1754821832617,-460.0,0.00021023,2]
[378316787,1754821832627,-460.0,0.00021023,2]
[378316789,1754821832637,-460.0,0.00021023,2]
[378316792,1754821832649,-460.0,0.00021023,2]
[378316794,1754821832659,-460.0,0.00021023,2]
[378316796,1754821832670,-460.0,0.00021023,2]
[378316798,1754821832681,-460.0,0.00021023,2]
[378316800,1754821832691,-460.0,0.00021023,2]
[378316802,1754821832702,-460.0,0.00021023,2]
[378316804,1754821832712,-460.0,0.00021023,2]
[378316806,1754821832722,-460.0,0.00021023,2]
[378316808,1754821832732,-460.0,0.00021023,2]
[378316810,1754821832743,-460.0,0.00021023,2]
[378316812,1754821832753,-460.0,0.00021023,2]
[378316814,1754821832764,-214.04,0.00021023,2]
[378316817,1754821832775,-460.0,0.00021023,2]
[378316819,1754821832788,-460.0,0.00021023,2]
[378316821,1754821832802,-460.0,0.00021023,2]
[378316823,1754821832812,-500.0,0.00021023,2]
[378316825,1754821832823,-500.0,0.00021023,2]
[378316827,1754821832833,-500.0,0.00021023,2]
[378316829,1754821832844,-460.0,0.00021023,2]
[378316831,1754821832855,-460.0,0.00021023,2]
[378316833,1754821832865,-460.0,0.00021023,2]
[378316835,1754821832876,-460.0,0.00021023,2]
[378316837,1754821832886,-158.62,0.00021023,2]
[378316839,1754821832896,-460.0,0.00021023,2]
[378316841,1754821832906,-460.0,0.00021023,2]
[378316843,1754821832916,-460.0,0.00021023,2]
[378316844,1754821832927,-767.93,0.00021023,2]
[378316845,1754821832938,-460.0,0.00021023,2]
[378316846,1754821832948,-460.0,0.00021023,2]
[378316847,1754821832958,-623.31,0.00021023,2]
[378316848,1754821832969,-460.0,0.00021023,2]
[378316849,1754821832979,-460.0,0.00021023,2]
[378316850,1754821832989,-440.37161655,0.00021023,2]
[378316851,1754821832999,-460.0,0.00021023,2]
[378316852,1754821833010,-460.0,0.00021023,2]
[378316853,1754821833020,-709.89,0.00021023,2]
[378316854,1754821833031,-477.12,0.00021023,2]
[378316855,1754821833042,-561.7354437,0.00021024,2]
[378316856,1754821833052,-460.0,0.00021024,2]
[378316857,1754821833062,-276.1807745,0.00021024,2]
[378316858,1754821833073,-460.0,0.00021024,2]
[378316859,1754821833083,-341.73729948,0.00021024,2]
[378316860,1754821833094,-460.0,0.00021024,2]
[378316861,1754821833104,-397.63260654,0.00021024,2]
[378316862,1754821833115,-460.0,0.00021024,2]
[378316863,1754821833125,-460.0,0.00021024,2]
[378316864,1754821833136,-187.62382079,0.00021024,2]
[378316865,1754821833147,-460.0,0.00021024,2]
[378316866,1754821833158,-460.0,0.00021024,2]
[378316867,1754821833168,-460.0,0.00021024,2]
[378316868,1754821833178,-460.0,0.00021024,2]
[378316869,1754821833188,-460.0,0.00021024,2]
[378316870,1754821833198,-460.0,0.00021024,2]
[378316871,1754821833209,-460.0,0.00021024,2]
[378316872,1754821833399,-467.64170324,0.00021024,2]
[378316873,1754821833412,-461.56582152,0.00021024,2]
[378316874,1754821833421,-460.0,0.00021024,2]
[378316875,1754821833431,-460.0,0.00021024,2]
[378316876,1754821833441,-460.0,0.00021024,2]
[378316877,1754821833451,-460.0,0.00021024,2]
[378316878,1754821833461,-460.0,0.00021024,2]
[378316879,1754821833471,-460.0,0.00021024,2]
[378316880,1754821833480,-460.0,0.00021024,2]
[378316881,1754821833490,-203.880304,0.00021024,10]
[378316882,1754821833501,-460.0,0.00021024,2]
[378316883,1754821833510,-201.97295885,0.00021024,2]
[378316884,1754821833520,-460.0,0.00021024,2]
[378316885,1754821833532,-460.0,0.00021024,2]
[378316886,1754821833542,-460.0,0.00021024,2]
[378316887,1754821833552,-462.95321976,0.00021024,2]
[378316888,1754821833562,-460.0,0.00021024,2]
[378316889,1754821833572,-553.44465135,0.00021024,2]
[378316890,1754821833581,-460.0,0.00021024,2]
[378316891,1754821833591,-460.0,0.00021024,2]
[378316892,1754821833601,-460.0,0.00021024,2]
[378316893,1754821833611,-460.0,0.00021024,2]
[378316894,1754821833621,-460.0,0.00021024,2]
[378316895,1754821833633,-500.0,0.00021024,2]
[378316896,1754821833642,-500.0,0.00021024,2]
[378316897,1754821833651,-460.0,0.00021024,2]
[378316898,1754821833661,-460.0,0.00021024,2]
[378316899,1754821833671,-460.0,0.00021024,2]
[378316900,1754821833681,-460.0,0.00021024,2]
[378316901,1754821833691,-460.0,0.00021024,2]
[378316902,1754821833700,-460.0,0.00021024,2]
[378316903,1754821833709,-460.0,0.00021024,2]
[378316904,1754821833719,-460.0,0.00021024,2]
[378316905,1754821833729,-460.0,0.00021024,2]
[378316906,1754821833739,-460.0,0.00021024,2]
[378316907,1754821833749,-460.0,0.00021024,2]
[378316908,1754821833758,-623.31,0.00021024,2]
[378316909,1754821833768,-623.31,0.00021024,2]
[378316910,1754821833777,-460.0,0.00021024,2]
[378316911,1754821833788,-460.0,0.00021024,2]
[378316912,1754821833798,-460.0,0.00021024,2]
[378316913,1754821833807,-460.0,0.00021024,2]
[378316914,1754821833817,-460.0,0.00021024,2]
[378316915,1754821833826,-460.0,0.00021024,2]
[378316916,1754821833836,-460.0,0.00021024,2]
[378316917,1754821833845,-460.0,0.00021024,2]
[378316918,1754821833855,-460.0,0.00021024,2]
[378316919,1754821833865,-460.0,0.00021024,2]
[378316920,1754821833874,-460.0,0.00021024,2]
[378316921,1754821833884,-460.0,0.00021024,2]
[378316922,1754821833894,-460.0,0.00021024,2]
[378316923,1754821833904,-460.0,0.00021024,2]
[378316924,1754821833914,-460.0,0.00021024,2]
[378316925,1754821833924,-477.69,0.00021024,2]
[378316926,1754821833934,-584.79542755,0.00021025,2]
[378316927,1754821833944,-460.0,0.00021025,2]
[378316928,1754821833954,-460.0,0.00021025,2]
[378316929,1754821833963,-500.0,0.00021073,2]
[378316930,1754821833973,-500.0,0.00021123,2]
[378316931,1754821833983,-623.31,0.00021296,2]
[378316932,1754821833992,-460.0,0.00021296,2]
[378316933,1754821834002,-460.0,0.00021296,2]
[378316934,1754821834012,-199.37,0.00021297,2]
[378316935,1754821834021,-350.46,0.00021297,2]
[378316936,1754821834032,-466.67802063,0.00021297,2]
[378316937,1754821834041,-460.0,0.00021297,2]
[378316938,1754821834050,-460.0,0.00021297,2]
[378316939,1754821834061,-767.93,0.00021297,2]
[378316940,1754821834071,-709.89,0.00021297,2]
[378316941,1754821834080,-460.0,0.00021298,2]
[378316942,1754821834090,-460.0,0.00021298,2]
[378316943,1754821834099,-460.0,0.00021298,2]
[378316944,1754821834109,-460.0,0.00021299,2]
[378316945,1754821834119,-460.0,0.00021299,2]
[378316946,1754821834129,-460.0,0.0002157,2]
[378316947,1754821834138,-460.0,0.00021571,2]
[378316948,1754821834148,-767.93,0.00021571,2]
[378316949,1754821834158,-709.89,0.00021571,2]
[378316950,1754821834167,-460.0,0.00021572,2]
[378316951,1754821834179,-393.79,0.00021572,2]
[378316952,1754821834189,-554.97,0.00021573,2]
[378316953,1754821834198,-460.0,0.00021573,2]
[378316954,1754821834208,-1000.0,0.00021621,2]
[378316955,1754821834218,-4770.73264885,0.00021655,2]
[378316956,1754821834227,-897.87467465,0.00021655,2]
[378316957,1754821834237,-460.0,0.00021844,2]
[378316958,1754821834247,-460.0,0.00021845,2]
[378316959,1754821834256,-767.93,0.00021845,2]
[378316960,1754821834266,-709.89,0.00021845,2]
[378316961,1754821834283,-460.0,0.00021846,2]
[378316962,1754821834292,-460.0,0.00021847,2]
[378316963,1754821834302,-500.0,0.00021916,2]
[378316964,1754821834311,-623.31,0.00021916,2]
[378316965,1754821834322,-200.0,0.00021969,15]
[378316966,1754821834331,-300.0,0.00021969,15]
[378316967,1754821834340,-491.7,0.00022,2]
[378316968,1754821834351,-218.15006156,0.00022019,2]
[378316969,1754821834363,-210.07,0.00022101,3]
[378316970,1754821834373,-630.21,0.00022101,3]
[378316971,1754821834382,-500.0,0.0002211,2]
[378316972,1754821834392,-500.0,0.0002211,2]
[378316973,1754821834402,-521.851537,0.0002211,2]
[378316974,1754821834412,-500.0,0.0002211,2]
[378316975,1754821834421,-500.0,0.0002211,2]
[378316976,1754821834432,-500.0,0.0002211,2]
[378316977,1754821834442,-500.0,0.0002211,2]
[378316978,1754821834451,-500.0,0.0002211,2]
[378316979,1754821834461,-500.0,0.0002211,2]
[378316980,1754821834471,-500.0,0.0002211,2]
[378316981,1754821834480,-500.0,0.0002211,2]
[378316982,1754821834490,-4375.17,0.0002211,2]
[378316983,1754821834501,-353.07452562,0.0002211,2]
[378316984,1754821834511,-151722.04771723,0.00022111,2]
[378316986,1754821838130,-471.54538709,0.00022111,2]
[378316987,1754821838141,-600.07165588,0.00022111,2]
[378316988,1754821838152,-1791.78345971,0.00022111,2]
[378316989,1754821838163,-2456.26312278,0.00022111,2]
[378316990,1754821838175,-3524.68839864,0.00022111,2]
[378316991,1754821838187,-618.44922971,0.00022111,2]
[378316992,1754821838198,-613.80453581,0.00022111,2]
[378316993,1754821838238,-15995.50615453,0.00022111,2]
[378316994,1754821838249,-5861.26755751,0.00022111,2]
[378317005,1754821845292,796.49257378,0.00017882,2]
[378317009,1754821876456,997.64,0.00025,120]
[378317010,1754821952769,170.06615919,0.00029041,120]
[378317011,1754821966367,856.0081824,0.00020262,2]
[378317012,1754821980304,792.93876706,0.00020011,2]
[378317013,1754821981105,5578.84301411,0.000199,2]
[378317015,1754822056516,185.605785,0.00020094,2]
[378317017,1754822069690,501.0,0.00030136,120]
[378317019,1754822157536,278.933417,0.00013699,2]
[378317020,1754822157939,278.933417,0.00020187,2]
[378317022,1754822170606,5771.58522959,0.000199,2]
[378317023,1754822216213,4784.71243166,0.00020501,2]
[378317024,1754822216235,215.28756834,0.00020501,2]
[378317025,1754822226442,-181.71741387,0.00020615,2]
[378317026,1754822232522,157.28258613,0.00020615,2]
[378317027,1754822281610,792.70559842,0.00020011,2]
[378317028,1754822293211,-300.0,0.00020614,2]
[378317029,1754822293233,-4842.71741387,0.00020615,2]
[378317030,1754822307105,119.28258613,0.00020615,2]
[378317031,1754822330137,428.4,0.00030137,120]
[378317034,1754822357866,152.78238537,0.0002037,2]
[378317035,1754822359109,18839.22444787,0.00020003,2]
[378317036,1754822359136,6060.77555213,0.00020003,2]
[378317037,1754822361683,-4880.71741387,0.00020615,2]
[378317038,1754822361707,-177.13190843,0.00020615,2]
[378317039,1754822367924,132.1506777,0.00020615,2]
[378317041,1754822375726,179.1747445,0.00020003,2]
[378317043,1754822379461,6150.572235,0.000199,2]
[378317045,1754822396382,7609.47746837,0.00019994,2]
[378317046,1754822396405,410.00920843,0.00019994,2]
[378317047,1754822434017,-4867.8493223,0.00020615,2]
[378317049,1754822441672,73.1506777,0.00020615,2]
[378317050,1754822505069,-2853.0,0.00020615,2]
[378317051,1754822505124,16459.9862957,0.00019983,2]
[378317057,1754822583045,757.15740877,0.00020011,2]
[378317058,1754822588281,2372.8470871,0.000199,2]
[378317059,1754822588307,3909.99032629,0.000199,2]
[378317061,1754822635632,5000.0,0.00020501,2]
[378317062,1754822651708,5000.0,0.00020501,2]
[378317063,1754822667450,5000.0,0.00020501,2]
[378317064,1754822682944,1090.00967371,0.00020501,2]
[378317065,1754822682968,3909.99032629,0.00020501,2]
[378317066,1754822698648,5000.0,0.00020501,2]
[378317068,1754822714244,5000.0,0.00020501,2]
[378317087,1754822730749,5000.0,0.00020501,2]
[378317088,1754822747239,1090.00967371,0.00020501,2]
[378317089,1754822747262,3909.99032629,0.00020501,2]
[378317090,1754822762972,5000.0,0.00020501,2]
[378317091,1754822781199,5000.0,0.00020501,2]
[378317092,1754822786259,6090.00967371,0.000199,2]
[378317093,1754822786285,276.84100818,0.000199,2]
[378317094,1754822790860,3426.42,0.0003,120]
[378317095,1754822797638,5000.0,0.00020501,2]
[378317096,1754822813310,5000.0,0.00020501,2]
[378317097,1754822828954,5000.0,0.00020501,2]
[378317098,1754822844954,4723.15899182,0.00020501,2]
[378317099,1754822844978,276.84100818,0.00020501,2]
[378317100,1754822845499,180.010373,0.00019952,2]
[378317101,1754822851167,203.125144,0.00027397,120]
[378317102,1754822853906,1267.7835633,0.00020111,2]
[378317103,1754822860601,5000.0,0.00020501,2]
[378317104,1754822869437,210.33741802,0.00020501,2]
[378317105,1754822871396,10000.0,0.00020501,2]
[378317106,1754822878130,3065.0276375,0.00020501,2]
[378317107,1754822878155,1934.9723625,0.00020501,2]
[378317108,1754822884507,678.3950871,0.000189,2]
[378317109,1754822885099,10000.0,0.00020501,2]
[378317110,1754822886155,4452.15375391,0.00020501,2]
[378317111,1754822886586,221.09583888,8.6e-07,2]
[378317112,1754822894415,2713.38295761,0.00020501,2]
[378317113,1754822894439,2286.61704239,0.00020501,2]
[378317114,1754822906808,8508.0,0.00020501,2]
[378317116,1754822912478,5000.0,0.00020501,2]
[378317117,1754822929060,4205.38295761,0.00020501,2]
[378317118,1754822929084,794.61704239,0.00020501,2]
[378317119,1754822944559,5000.0,0.00020501,2]
[378317120,1754822963497,5000.0,0.00020501,2]
[378317121,1754822969047,6306.53855827,0.000199,2]
[378317123,1754822978918,2898.84439934,0.00020501,2]
[378317124,1754822978943,2101.15560066,0.00020501,2]
[378317125,1754822994675,5000.0,0.00020501,2]
[378317126,1754823011148,5000.0,0.00020501,2]
[378317127,1754823031038,5000.0,0.00020501,2]
[378317197,1754823033112,-252.12946711,0.00020715,2]
[378317199,1754823033122,-1196.43805235,0.00020898,2]
[378317201,1754823033131,-300.0,0.00020921,2]
[378317203,1754823033141,-4750.36417487,0.00020922,2]
[378317205,1754823033150,-1200.0,0.00020922,2]
[378317207,1754823033160,-460.0,0.00020923,2]
[378317209,1754823033170,-460.0,0.00020923,2]
[378317210,1754823033179,-460.0,0.00020923,2]
[378317211,1754823033189,-543.64226108,0.00020923,2]
[378317213,1754823033198,-444.77873775,0.00020923,2]
[378317215,1754823033208,-460.0,0.00020923,2]
[378317218,1754823033217,-460.0,0.00020923,2]
[378317221,1754823033227,-534.46,0.00020923,2]
[378317223,1754823033238,-537.71,0.00020923,2]
[378317225,1754823033248,-460.0,0.00020923,2]
[378317227,1754823033257,-460.0,0.00020923,2]
[378317228,1754823033267,-460.0,0.00020923,2]
[378317229,1754823033277,-460.0,0.00020923,2]
[378317231,1754823033287,-460.0,0.00020923,2]
[378317233,1754823033297,-460.0,0.00020923,2]
[378317235,1754823033307,-460.0,0.00020923,2]
[378317236,1754823033316,-991.12,0.00020923,2]
[378317238,1754823033331,-460.0,0.00020923,2]
[378317240,1754823033341,-460.0,0.00020923,2]
[378317243,1754823033352,-466.8464826,0.00020923,2]
[378317244,1754823033362,-460.0,0.00020923,2]
[378317246,1754823033372,-28882.65988724,0.00020924,2]
[378317248,1754823033385,-6978.68429665,0.00020924,2]
[378317250,1754823033394,-512.68909714,0.00020973,2]
[378317252,1754823033404,-500.0,0.00020973,2]
[378317254,1754823033413,-524.1944747,0.00020973,2]
[378317256,1754823033422,-504.89955754,0.00020973,2]
[378317258,1754823033431,-5000.0,0.00020978,2]
[378317260,1754823033440,-553.9,0.00020979,10]
[378317262,1754823033449,-461.59,0.00020979,10]
[378317263,1754823033459,-384.66,0.00020979,10]
[378317265,1754823033468,-500.0,0.00020979,2]
[378317267,1754823033478,-500.0,0.00020979,2]
[378317268,1754823033487,-500.0,0.00020979,2]
[378317269,1754823033497,-500.0,0.00020979,2]
[378317270,1754823033506,-500.0,0.00020979,2]
[378317271,1754823033516,-500.0,0.00020979,2]
[378317272,1754823033526,-500.0,0.00020979,2]
[378317273,1754823033536,-500.0,0.00020979,2]
[378317274,1754823033545,-500.0,0.00020979,2]
[378317275,1754823033555,-546.98277081,0.00020979,2]
[378317276,1754823033565,-500.0,0.00020979,2]
[378317277,1754823033575,-500.0,0.00020979,2]
[378317278,1754823033585,-547.06297283,0.00020979,2]
[378317279,1754823033595,-500.0,0.00020979,2]
[378317280,1754823033605,-464.41334008,0.00020979,2]
[378317281,1754823033614,-500.0,0.00020979,2]
[378317282,1754823033623,-500.0,0.00020979,2]
[378317283,1754823033632,-500.0,0.00020979,2]
[378317284,1754823033642,-500.0,0.00020979,2]
[378317285,1754823033651,-500.0,0.00020979,2]
[378317286,1754823033660,-500.0,0.00020979,2]
[378317287,1754823033669,-500.0,0.00020979,2]
[378317288,1754823033679,-500.0,0.00020979,2]
[378317289,1754823033688,-385.53812161,0.00020979,2]
[378317290,1754823033698,-500.0,0.00020979,2]
[378317291,1754823033707,-500.0,0.00020979,2]
[378317292,1754823033716,-319.27400481,0.00020979,2]
[378317293,1754823033725,-500.0,0.00020979,2]
[378317294,1754823033734,-500.0,0.00020979,2]
[378317295,1754823033743,-500.0,0.00020979,2]
[378317296,1754823033753,-500.0,0.00020979,2]
[378317297,1754823033761,-500.0,0.00020979,2]
[378317298,1754823033770,-500.0,0.00020979,2]
[378317299,1754823033779,-310.86802589,0.00020979,2]
[378317300,1754823033789,-500.0,0.00020979,2]
[378317301,1754823033798,-500.0,0.00020979,2]
[378317302,1754823033808,-500.0,0.00020979,2]
[378317303,1754823033817,-500.0,0.00020979,2]
[378317304,1754823033828,-500.0,0.00020979,2]
[378317305,1754823033838,-500.0,0.00020979,2]
[378317306,1754823033848,-500.0,0.00020979,2]
[378317307,1754823033861,-500.0,0.00020979,2]
[378317308,1754823033871,-500.0,0.00020979,2]
[378317309,1754823033880,-500.0,0.00020979,2]
[378317310,1754823033890,-500.0,0.00020979,2]
[378317311,1754823033899,-500.0,0.00020979,2]